Cogmind - Beta 15 @@@ ROGUE MODE // 2025.06.24 @ 23:53:15 Player: CL-1C0 Result: Destroyed by Y-45 Defender with Heavy Assault Rifle Performance ------------- Evolutions (0) 0 Regions Visited (2) 400 Robots Destroyed (15) 75 Value Destroyed (351) 351 Prototype IDs (0) 0 Alien Tech Used (0) 0 Bonus (0) 0 TOTAL SCORE: 826 Bonus ------- None Cogmind --------- Core Integrity 0/250 Matter 280/300 Energy 200/200 System Corruption 0% Temperature Cool (9) Movement Core (300) Ox5 Location -10/Subcaves Parts ------- > --- POWER (1) -------- Subdweller Power Source > --- PROPULSION (2) --- (None) > --- UTILITY (2) ------ Small Storage Unit Targeting Computer > --- WEAPON (2) ------- Subdweller Machine Gun Grenade Launcher > --- INVENTORY (8) ---- Light Ion Engine Subdweller Monowheel Subdweller Monowheel Small Matter Pod (50) Makeshift Trap Scanner Machine Analyzer Grenade Launcher Peak State ------------ > --- POWER ------------ Subdweller Power Source > --- PROPULSION ------- Light Treads Wheel > --- UTILITY ---------- Small Storage Unit Targeting Computer > --- WEAPON ----------- Light Assault Rifle Subdweller Machine Gun > --- INVENTORY -------- Light Ion Engine Wheel Subdweller Monowheel Small Matter Pod Makeshift Trap Scanner Machine Analyzer Grenade Launcher Grenade Launcher [Rating: 10] Favorites ----------- Power Light Ion Engine Engine Light Ion Engine Propulsion Light Treads Treads Light Treads Leg Aluminum Leg Wheel Wheel Utility Small Storage Unit Storage Small Storage Unit Processor Targeting Computer Weapon Light Assault Rifle Energy Gun EM Pulse Gun Ballistic Gun Light Assault Rifle Launcher Grenade Launcher Build | -11 -10 -10 ------- Run | Yrd Mat Sub Slots Evolved . | . . . Power . | . . . Propulsion . | . . . Utility . | . . . Weapon . | . . . Parts Attached 11 | . 7 4 Power 1 | . . 1 Engine 1 | . . 1 Core . | . . . Reactor . | . . . Propulsion 4 | . 3 1 Treads 3 | . 3 . Leg . | . . . Wheel 1 | . . 1 Hover . | . . . Flight . | . . . Utility 1 | . 1 . Device . | . . . Storage . | . . . Processor 1 | . 1 . Hackware . | . . . Protection . | . . . Artifact . | . . . Weapon 5 | . 3 2 Energy Gun . | . . . Energy Cannon . | . . . Ballistic Gun 4 | . 2 2 Ballistic Cannon . | . . . Launcher 1 | . 1 . Special Weapon . | . . . Impact Weapon . | . . . Slashing Weapon . | . . . Piercing Weapon . | . . . Special Melee Weapon . | . . . Unidentified Prototypes . | . . . Parts Lost 9 | . 1 8 Power 1 | . . 1 Propulsion 4 | . . 4 Utility . | . . . Weapon 4 | . 1 3 Highest Loss Streak 5 | . 1 5 To Critical Strikes . | . . . Average Backups 7 | . 6 7 Power 1 | . 1 1 Propulsion 2 | . 2 2 Utility 1 | . . 2 Weapon 2 | . 2 2 Tool/Special . | . . . Unused Backups 7 | . . 7 Power . | . . . Propulsion 3 | . . 3 Utility 3 | . . 3 Weapon 1 | . . 1 Tool/Special . | . . . Average Slot Usage (%) 90 | . 95 85 Engine 12 | . 14 11 Treads 20 | . 25 14 Wheel 5 | . . 10 Storage 14 | . 14 14 Processor 13 | . 12 14 Energy Gun 3 | . 6 . Ballistic Gun 16 | . 14 17 Launcher 3 | . 4 1 Peak Build Rating 10 | . 7 10 Average Rating 7 | . 6 8 On Entrance 6 | 6 6 7 Naked Turns . | . . . Heaviest Build 15 | 11 12 15 Greatest Support 40 | 20 40 40 Greatest Overweight (x) 1 | . . 1 Average Overweight (x) . | . . . Largest Inventory Capacity 8 | . 8 8 Average Capacity 8 | . 8 8 Most Carried 8 | . 8 8 Average Carried 7 | . 6 7 Final Capacity 8 | 8 8 8 Final Carried 7 | 6 7 7 Class Distribution -------------------- 100% | Mutant Dominant Class ---------------- Mutant | -10/Materials Mutant | -10/Subcaves Resources | -11 -10 -10 ----------- Run | Yrd Mat Sub Matter Collected 441 | 200 134 107 Remotely . | . . . Salvage Created 408 | . 200 208 Parts 33 | . 20 13 Haulers Intercepted 1 | . 1 . Recyclers Shooed . | . . . Parts Field Recycled . | . . . Retrieved Matter . | . . . Parts Self-Destructed 3 | . . 3 Prevented . | . . . Kills | -11 -10 -10 ------- Run | Yrd Mat Sub Combat Hostiles Destroyed 12 | . 6 6 Guns 7 | . 2 5 AOE 5 | . 4 1 Classes Destroyed 6 | . 5 1 Worker 1 | . 1 . Builder 1 | . 1 . Hauler 1 | . 1 . Swarmer 4 | . 3 1 Grunt 5 | . 3 2 Subdweller 3 | . . 3 Best Kill Streak 5 | . 5 2 Combat Bots Only 3 | . 3 2 Max Kills in Single Turn 4 | . 4 1 Gunslinging . | . . . Exploded 3 | . 3 1 Melee . | . . . Uniques/NPCs Destroyed . | . . . Combat | -11 -10 -10 -------- Run | Yrd Mat Sub Hostile Shots Fired 81 | . 24 57 Missed 16 | . 3 13 Hits 65 | . 21 44 Projectile 65 | . 21 44 Damage Taken 1093 | . 276 817 Core 251 | . 43 208 Absorbed by Shields . | . . . Core Remaining (%) 100 | 100 . . Volleys Fired 53 | . 13 40 Largest 2 | . 2 2 Hottest 60 | . 60 50 Shots Fired 76 | . 21 55 Gun 74 | . 20 54 Cannon . | . . . Launcher 2 | . 1 1 Special . | . . . Kinetic 67 | . 13 54 Thermal . | . . . Explosive 2 | . 1 1 Electromagnetic 7 | . 7 . Robot Hit Streak 35 | . 19 35 Robot Miss Streak 2 | . 2 1 Penetration Max . | . . . Secondary Targets 2 | . 1 1 Max Gunslinging Chain 1 | . 1 1 Shots Hit Robots 63 | . 19 44 Core Hits 26 | . 12 14 Critical Kills 1 | . . 1 Critical Parts Destroyed 1 | . . 1 Critical Strikes 2 | . . 2 Destroy 2 | . . 2 Melee Attacks . | . . . Impact . | . . . Slashing . | . . . Piercing . | . . . Sneak Attacks . | . . . Combat Hostiles . | . . . Follow-up Attacks . | . . . Damage Inflicted 1027 | . 436 591 Guns 701 | . 174 527 Cannons . | . . . Explosions 320 | . 256 64 Melee . | . . . Ramming 6 | . 6 . Kinetic 621 | . 94 527 Thermal 90 | . 90 . Explosive 230 | . 166 64 Electromagnetic 80 | . 80 . Impact . | . . . Slashing . | . . . Piercing . | . . . Highest Corruption . | . . . Average Corruption . | . . . Corruption Purged . | . . . Corruption Blocked . | . . . Overload Shots . | . . . Overflow Damage 15 | . 15 . Projectiles . | . . . Explosions 15 | . 15 . Melee . | . . . Knockbacks . | . . . Impact . | . . . Kinetic . | . . . Secondary . | . . . Self-Inflicted Damage 62 | . 62 . Shots 2 | . 2 . Rammed 2 | . 2 . Targets Rammed 2 | . 2 . Kicked . | . . . Crushed . | . . . Highest Temperature 130 | . 130 . Average Temperature 64 | . 64 . Received Heat Transfer 186 | . 96 90 Siege Activations . | . . . Martial Activations . | . . . Shielding Activations . | . . . Robots Disrupted . | . . . Combat Hostiles . | . . . Robots Corrupted . | . . . Combat Hostiles . | . . . Parts Fried . | . . . Impact Corruptions . | . . . Robots Melted . | . . . Combat Hostiles . | . . . Parts Melted . | . . . Heat Transferred 150 | . 150 . Parts Sabotaged . | . . . Parts Stolen . | . . . Parts Stripped . | . . . Power Chain Reactions 1 | . 1 . Alert | -11 -10 -10 ------- Run | Yrd Mat Sub Maximum Alert Level . | . . . Low Security (%) 100 | . 100 . Level 1 . | . . . Level 2 . | . . . Level 3 . | . . . Level 4 . | . . . Level 5 . | . . . High Security . | . . . Max Security . | . . . Peak Influence 116 | . 116 . Initial . | . . . Average 38 | . 38 . Influence Increases 236 | . 166 70 Destroy 0b10 Robot/C 180 | . 120 60 Destroy 0b10 Robot/NC 15 | . 15 . Destroy Leader 32 | . 22 10 Destroy Structure 9 | . 9 . Influence Decreases 216 | . 110 106 Entered New Map 28 | . . 28 Time Decay 170 | . 100 70 Lost Part 18 | . 10 8 Squads Dispatched 1 | . 1 . Investigation . | . . . Extermination . | . . . Reinforcement 1 | . 1 . Assault . | . . . Garrison . | . . . Intercept . | . . . Searches Triggered . | . . . Construction Impeded . | . . . Haulers Reinforced . | . . . Active Scanning Responses . | . . . Cargo Convoy Interrupts . | . . . Stealth | -11 -10 -10 --------- Run | Yrd Mat Sub Distress Signals . | . . . Communications Jammed . | . . . Distress Signals . | . . . Times Spotted 15 | . 8 7 Peak Tracking Total 3 | . 3 2 Tactical Retreats . | . . . Traps | -11 -10 -10 ------- Run | Yrd Mat Sub Traps Triggered 1 | . 1 . Indirectly . | . . . Trap Hack Attempts . | . . . Triggered . | . . . Disarmed . | . . . Reprogrammed . | . . . Reused . | . . . Traps Extracted . | . . . Installed . | . . . Triggered . | . . . Machines | -11 -10 -10 ---------- Run | Yrd Mat Sub Machines Disabled . | . . . Max in Single Turn . | . . . Machines Repaired . | . . . Machines Dismantled . | . . . Machines Sabotaged . | . . . Overloaded Fab Kills . | . . . Hacking | -11 -10 -10 --------- Run | Yrd Mat Sub Machines Accessed . | . . . Terminals . | . . . Fabricators . | . . . Repair Stations . | . . . Recycling Units . | . . . Scanalyzers . | . . . Garrison Access . | . . . Total Hacks . | . . . Successful . | . . . Failed . | . . . Catastrophic . | . . . Database Lockouts . | . . . Manual . | . . . Terminals . | . . . Fabricators . | . . . Repair Stations . | . . . Recycling Units . | . . . Scanalyzers . | . . . Garrison Access . | . . . Terminal Hacks . | . . . Fabricator Hacks . | . . . Repair Station Hacks . | . . . Recycling Unit Hacks . | . . . Scanalyzer . | . . . Garrison Access Hacks . | . . . Unauthorized Hacks . | . . . Terminals . | . . . Fabricators . | . . . Repair Stations . | . . . Recycling Units . | . . . Scanalyzers . | . . . Garrison Access . | . . . Data Cores Recovered . | . . . Used . | . . . Hacking Detections . | . . . Full Trace Events . | . . . Feedback Events . | . . . Feedback Blocked . | . . . Robot Schematics Acquired . | . . . Robots Built . | . . . Authchips . | . . . Time . | . . . Total Robot Build Rating . | . . . Part Schematics Acquired . | . . . Parts Built . | . . . Authchips . | . . . Time . | . . . Total Part Build Rating . | . . . Parts Repaired . | . . . Time . | . . . Parts Recycled . | . . . Recycled Matter . | . . . Retrieved Matter . | . . . Retrieved Components . | . . . Parts Scanalyzed . | . . . Part Schematics Acquired . | . . . Parts Damaged . | . . . Bothacking | -11 -10 -10 ------------ Run | Yrd Mat Sub Used RIF Installer . | . . . Robots Hacked . | . . . Non-combat . | . . . Combat . | . . . Robot Hacks Applied . | . . . Relay Couplers Released . | . . . Fabnet Peak Effective % . | . . . Robots Rewired . | . . . Allies Hacked . | . . . Hacks Repelled . | . . . Allies | -11 -10 -10 -------- Run | Yrd Mat Sub Total Allies . | . . . Largest Group . | . . . Highest-Rated Group . | . . . Highest-Rated Ally . | . . . Total Orders . | . . . Ally Attacks . | . . . Total Damage . | . . . Kills . | . . . Allies Corrupted . | . . . Allies Melted . | . . . Intel | -11 -10 -10 ------- Run | Yrd Mat Sub Active Infowar (turns) . | . . . Robot Analysis Total . | . . . Derelict Logs Recovered . | . . . Drone Launches . | . . . Drone Recoveries . | . . . Exploration | -11 -10 -10 ------------- Run | Yrd Mat Sub Turns Passed 777 | . 392 385 Spaces Moved 337 | 1 83 253 Core 1 | . . 1 Treads 81 | . 78 3 Legs 6 | 1 5 . Wheels 249 | . . 249 Hover . | . . . Flight . | . . . Fastest Speed 80 | 120 120 80 Average Speed 110 | 120 157 94 Slowest Speed 160 | 120 160 160 Overloaded Moves . | . . . Propulsion Burnouts . | . . . Robots Hopped . | . . . Potential Cave-ins . | . . . Cave-ins Triggered . | . . . Exploration Rate (%) 15 | 2 26 17 Regions Visited 2 Branch Regions 1 Pre-discovered Areas . | . . . Known Exits Taken . | . . . Unknown Exits Taken 2 | 1 1 . Scrap Searched . | . . . Spaces Dug . | . . . Terrain Destroyed 9 | . 8 1 Melee . | . . . Projectile . | . . . AOE 9 | . 8 1 Terrain Rammed . | . . . Walls Destroyed . | . . . Machines Disabled . | . . . Actions | -11 -10 -10 --------- Run | Yrd Mat Sub Total 676 | . 325 351 Wait 251 | . 207 44 Move 335 | . 82 253 Hop . | . . . Pick Up 13 | . 8 5 Fast Attach 6 | . 3 3 Attach 7 | . 4 3 Detach . | . . . Swap 2 | . 1 1 Drop 7 | . 5 2 Fire 53 | . 13 40 Melee . | . . . Ram . | . . . Kick . | . . . Crush 2 | . 2 . Escape Stasis . | . . . Rewire . | . . . Trap . | . . . Miscellaneous . | . . . Route ------- -11/Scrapyard -10/Materials -10/Subcaves (discovered 1 exit: [*Mat]) History --------- Turn | Location | Event 1 | -11/Scrapyard | Discovered new exit (range 0) 1 | -11/Scrapyard | Entered Materials 305 | -10/Materials | Build established: Mutant 381 | -10/Materials | Discovered new exit (range 6) 393 | -10/Materials | Entered Subcaves 394 | -10/Subcaves | Approached by a straggling Scientist 462 | -10/Subcaves | Core integrity fell below 50% 500 | -10/Subcaves | Lost 5 parts (1p2n2w) 524 | -10/Subcaves | Discovered new exit (range 9) 754 | -10/Subcaves | Core integrity fell below 20% 778 | -10/Subcaves | Destroyed by Y-45 Defender with Heavy Assault Rifle Last Messages --------------- 00513_ Acquired Sub. Power Source. 00514_ Acquired 10 matter. 00524_ EXIT=FOUND 00561_ Lgt. Assault Rifle destroyed. 00564_ G-47 Trooper destroyed. 00574_ G-34 Mercenary destroyed. 00581_ Acquired 18 matter. 00582_ Aluminum Leg fries itself beyond repair. 00582_ Ion Engine fries itself beyond repair. 00587_ Sml. Laser fries itself beyond repair. 00672_ Acquired 4 matter. 00720_ Subatomizers dissect the Heat Sink. 00755_ Lgt. Treads destroyed. 00763_ BS-IBT(R) suffers critical hit (Destroy). 00763_ BS-IBT(R) destroyed. 00765_ Acquired 9 matter. 00767_ Dropped Wheel. 00767_ Acquired Sub. Monowheel. 00775_ Wheel destroyed. 00777_ S-10 Pest destroyed. Map ----- +----------------------------------------------------+ | ?????????????????????????????????????????????????? | | ?????????????????????????????????????????????????? | | ?????????????????????????????????????????????????? | | ?????????????????????????????????????????????????? | | ?????????????????????????????????????????????????? | | ?????????????????????????????????????????????????? | | ?????????????????????????????????????????????????? | | ?????????????????????????????????????????????????? | | ?????????????????????????????????????????????????? | | ??????????????????? ##???????????????????????##### | | ??????????????????## #?????????????????????## # | | ??????????????????# #???????????????????## # | | ??????????????????# ###????????????????# # | | ??????????????????# ##########??????# # | | ??????????????????# ## ##?##### # | | ?????????????????? ### | | ????????????????????????# = ! | | ???????????????????????## &%& ### | | ??????????????????????## ##! #####?#### | | ??????????????????????# #######????###### | | ??????????????????????## ##??????### # | | ???????????????????????### #?????## & & | | ?????????????????????????# ### #????# = %& | | ????????????????????????## ##?# #????#### | | ???????????????????????## #??# ##????## # | | ???????????????????????# @ #??# ### # | | ???????????????????? #?? %# | | ????????????????% ###?? | | ???????????? Y ## #????##### | | ???????????### ####?####????????## # ### | | ?????????????# ???????????????????#### | | ?????????????####??????????????????????## | | ??????????????????????????????????????# | | ??????????????????????????????????????## | | ???????????????????????????????????????# ### # | | ???????????????????????????????????????# #??### | | ???????????????????????????????????????# ##?????? | | ???????????????????????????????????????##????????? | | ??????????????????????????????????????????????#??# | | ??????????????????????????????????????????? ##"## | | ??????????????????????????????????????????" """ | | ??????????????????????????????????????????" """ | | ???????????????????????????????????????????" # ## | | ??????????????????????????????????????????????#??# | | ?????????????????????????????????????????????????# | | ????????????????????????????????????????????????# | | ???????????????????????????????????????????????# | | ???????????????????????????????????????????????### | | ?????????????????????????????????????????????????? | | ?????????????????????????????????????????????????? | +----------------------------------------------------+ Best States ------------- Heat Dissipation 25 Energy Generation 15 Energy Capacity 200 Matter Stores 300 Matter Capacity 300 Sight Range 16 Terrain Scan Density 10 Evasion (%) 50 Targeting Accuracy 5 Recoil Reduction 2 Item Schematics ----------------- None Robot Schematics ------------------ None Fabricated ------------ Nothing Repaired ---------- Nothing Alien Tech Used ----------------- None Achievements -------------- None Challenges ------------ None Game ------ Seed PropulsionBattleScanner Manual? 0 Play Time 00:07:43 Cumulative 560.3 hours Start 2025.06.24 @ 23:45:45 End 2025.06.24 @ 23:53:15 Sessions 1 Manual Loads 0 Difficulty Rogue Special Mode None Game No. 676 Rogue 676 Adventurer 0 Explorer 0 Win Type - Total 20 Types 14/0/5/1/0/0/0/0/0/0 Lore% 86 Gallery% 83 Achievement% 83 Wizard Run 0 Options --------- Layout 0 ASCII 0 Keyboard 0 Movement Numpad Keybinds 0 Fullscreen 1 Font 18/SmallcapsGlow Map View 76x50 Zoom Use 0% Tactical HUD 1 Map Filters NONE Filters NONE Steam 1 RUN: b4037fb4-d9e4-4929-928e-fb4c2739734b